{"text_format":"1","workbook":"xlsx","n_sheets":9,"sheets":["Home","2013","2014","2015","2016","2017","Report","Report2","Report3"],"not_rendered":{"charts":0,"images":5,"macros":1,"external_links":4,"defined_names":71,"comments":0,"pivot_tables":0},"unopened":[],"bounds":{"document_bytes":16777216,"sheet_cells":100000,"rows_first":2000,"rows_last":500,"rows_between":2000,"halvings":0,"cell_chars":16384,"cell_head_chars":4096},"cells_cut":0,"cells_raw":0,"read":"whole","date_system":"1900"}

{"sheet":"Home","index":0,"n_rows":19,"n_cols":40,"rows_kept":19,"cut":false,"hidden":false,"merged":[[18,28,18,33],[18,26,18,27],[7,27,7,30],[18,34,18,35],[9,32,10,32],[9,33,9,38],[18,36,18,39],[9,26,10,26],[9,27,9,31],[9,39,12,39],[13,39,14,39],[16,27,16,28],[16,29,16,30],[16,31,16,32],[7,38,7,39],[16,35,16,36],[16,38,16,39],[7,34,7,35],[16,33,16,34],[7,36,7,37],[7,31,7,33],[0,37,0,39],[0,33,0,36],[5,27,5,33],[0,26,0,28],[1,26,1,28],[1,31,1,32],[0,31,0,32],[3,34,3,35],[5,34,5,35],[3,27,3,33],[3,36,3,39],[5,36,5,39],[1,37,1,39],[1,33,1,36]]}
["رقم الجلوس","اسم الطالب ","اسم المدرسة ","الرقم القومي","العام","الدور","الديانة","اللغة العربية","الرياضيات ","الدراسات","العلوم","اللغة الإنجليزية","المجموع الكلي","نشاط 1","نشاط  2","التربية الدينية","التربية الرياضي","التربية الفنية","حاسب آلي","حالة الطالب","رقم القسيمة","تاريخ القسيمة","مبلغ القسيمة","سويت لحساب","مقدم إلى","بناءً على","إدارة شرق طنطا التعليمية",null,null,null,null,"موجود في",null,"اسم الطالب",null,null,null,"الرقم القومي"]
[{"$f":"AK4","v":0},{"$f":"AB4","v":0},{"$f":"AB6","v":"إدارة : إدارة شرق طنطا التعليمية"},{"$f":"AK6","v":0},{"$f":"AB8","v":0},{"$f":"AI8","v":0},{"$f":"AM8","v":"مسلمة"},{"$f":"AB14","v":0},{"$f":"AC14","v":0},0,0,0,0,0,0,0,0,0,0,{"$f":"AN14","v":0},1,2,3,4,5,6,"شئون الطلاب",null,null,null,null,"2013:$D$2",null,null,null,null,null,30702171603209]
[]
[null,null,null,null,null,null,null,null,null,null,null,null,null,null,null,null,null,null,null,null,null,null,null,null,null,null,"اسم الطالب :",null,null,null,null,null,null,null,"رقم الجلوس :"]
[]
[null,null,null,null,null,null,null,null,null,null,null,null,null,null,null,null,null,null,null,null,null,null,null,null,null,null,"اسم المدرسة :","إدارة : إدارة شرق طنطا التعليمية",null,null,null,null,null,null,"الرقم القومي :"]
[]
[null,null,null,null,null,null,null,null,null,null,null,null,null,null,null,null,null,null,null,null,null,null,null,null,null,null,"العام الدراسي :",null,null,null,null,"الــــــــــــــــــدور :",null,null,null,null,"الديانة :",null,"مسلمة"]
[]
[null,null,null,null,null,null,null,null,null,null,null,null,null,null,null,null,null,null,null,null,null,null,null,null,null,null,"المــــــواد الدراسيــــــه","مواد تضاف للمجموع",null,null,null,null,"المجموع الكلى","مواد لا تضاف للمجموع",null,null,null,null,null,"حالة الطالب"]
[null,null,null,null,null,null,null,null,null,null,null,null,null,null,null,null,null,null,null,null,null,null,null,null,null,null,null,"لغه عربية","رياضيات","دراسات","علوم","لغة انجليزية",null,"التربية الدينية","نشاط1","نشاط2","تربية رياضية","تربية فنية","حاسب آلى"]
[null,null,null,null,null,null,null,null,null,null,null,null,null,null,null,null,null,null,null,null,null,null,null,null,null,null,"النهايــــــــــــــة الكبــرى",100,100,100,100,100,500,100,100,100,100,100,100]
[null,null,null,null,null,null,null,null,null,null,null,null,null,null,null,null,null,null,null,null,null,null,null,null,null,null,"النهايـــــــــــــة الصغرى",50,50,50,50,50,250,50,50,50,50,50,50]
[null,null,null,null,null,null,null,null,null,null,null,null,null,null,null,null,null,null,null,null,null,null,null,null,null,null,"الدرجــــــــــــــــــــــــــــــــــــــــة"]
[null,null,null,null,null,null,null,null,null,null,null,null,null,null,null,null,null,null,null,null,null,null,null,null,null,null,"التقـــــــــــــــــديـــــــــــــــــــــــر"]
[]
[null,null,null,null,null,null,null,null,null,null,null,null,null,null,null,null,null,null,null,null,null,null,null,null,null,null,"رقم القسيمة :",{"$f":"IF(U2=\"\",\"\",U2)","v":1},null,"تاريخ القسيمة :",null,{"$f":"IF(V2=\"\",\"\",V2)","v":"1900-01-02"},null,"مبلغ القسيمة :",null,{"$f":"IF(W2=\"\",\"\",W2)","v":3},null,"لحساب:",{"$f":"IF(X2=\"\",\"\",X2)","v":4}]
[]
[null,null,null,null,null,null,null,null,null,null,null,null,null,null,null,null,null,null,null,null,null,null,null,null,null,null,"تم استخراج هذا البيان لتقديمـــــــــــه إلى :",null,{"$f":"IF(Y2=\"\",\"\",Y2)","v":5},null,null,null,null,null,"بناءً على طلب",null,{"$f":"IF(Z2=\"\",\"\",Z2)","v":6}]

{"sheet":"2013","index":1,"n_rows":24,"n_cols":37,"rows_kept":24,"cut":false,"hidden":false,"merged":[[3,0,6,0],[4,33,8,33],[6,26,7,26],[3,31,8,31],[3,32,3,35],[4,35,8,35],[3,5,6,5],[3,6,6,6],[3,1,6,1],[3,2,6,2],[3,3,6,3],[3,4,6,4],[3,36,8,36],[4,7,5,8],[4,9,5,10],[4,11,5,12],[4,13,5,14],[4,15,5,16],[4,19,5,20],[4,21,5,22],[4,23,5,24],[4,25,5,26],[3,7,3,16],[3,17,5,17],[3,18,7,18],[3,19,3,30],[7,17,8,17],[4,34,8,34],[0,7,1,25],[0,26,1,32],[2,7,2,19],[6,28,7,28],[6,30,7,30],[6,8,8,8],[6,10,8,10],[6,12,8,12],[6,14,8,14],[6,16,8,16],[6,20,7,20],[6,22,7,22],[6,24,8,24],[4,27,5,28],[4,29,5,30],[4,32,8,32]]}
[null,null,"محافظة : الغربية",null,null,null,null,"نتيجة  الصف السادس الابتدائى ـ  آخـــر العام",null,null,null,null,null,null,null,null,null,null,null,null,null,null,null,null,null,null,"2019  /  2018"]
[null,null,"إدارة : إدارة شرق طنطا التعليمية"]
[null,null,"قسم : شئون الطلاب والامتحانات"]
["رقــم الجلوس","الرقم القومي","اسم المدرسة","اسم الطالب","الديـــانـــة","الــــــــدور","العام الدراسي","مواد أساسية ـ تضاف للمجموع",null,null,null,null,null,null,null,null,null,"المجموع الكلى","التقدير","مـواد  لا تضاف للمجموع الكلى",null,null,null,null,null,null,null,null,null,null,null,"نتيجة آخر العام","بيانات الحوالة أو القسيمة",null,null,null,"الجهة المقدم إليها"]
[null,null,null,null,null,null,null,"اللغة العربية",null,"الرياضيات",null,"الدراسات",null,"العلوم",null,"اللغة الانجليزية",null,null,null,"تربية دينية",null,"اختيارى ( 1 ) ",null,"اختيارى ( 2 ) ",null,"نشاط رياضى",null,"تربية فنية",null,"حاسب آلى",null,null,"رقم القسيمة","تاريخ القسيمة","مبلغ القسيمة","وسويت لحساب"]
[]
[null,null,null,null,null,null,null,100,"التقدير",100,"التقدير",100,"التقدير",100,"التقدير",100,"التقدير",500,null,100,"التقدير",100,"التقدير",100,"التقدير",100,"التقدير",100,"التقدير",100,"التقدير"]
[null,null,null,null,null,null,null,50,null,50,null,50,null,50,null,50,null,250,null,50,null,50,null,50,null,50,null,50,null,50]
[]
[6001,30702041600496,"مدرسة سبطاس المشتركة تعليم أساسي","عبد الرحمن حاتم محمود عيسى","مسلم","الأول","2013 / 2012",98,"ممتاز",99,"ممتاز",99,"ممتاز",96,"ممتاز",98,"ممتاز",444,"ممتاز",95,"ممتاز",98,"ممتاز",99,"ممتاز",98,"ممتاز",99,"ممتاز",98,"ممتاز","ناجح"]
[6002,30706111600672,"مدرسة سبطاس المشتركة تعليم أساسي","ابراهيم علي ابراهيم يوسف جاب الله","مسلم","الأول","2013 / 2012",89,"ممتاز",94,"ممتاز",90,"ممتاز",93,"ممتاز",94,"ممتاز",460,"ممتاز",93,"ممتاز",98,"ممتاز",98,"ممتاز",99,"ممتاز",98,"ممتاز",99,"ممتاز","ناجح"]
[6003,30709151606915,"مدرسة سبطاس المشتركة تعليم أساسي","ابراهيم وائل محمد ابراهيم البغدادي","مسلم","الأول","2013 / 2012",95,"ممتاز",91,"ممتاز",98,"ممتاز",97,"ممتاز",90,"ممتاز",471,"ممتاز",96,"ممتاز",98,"ممتاز",99,"ممتاز",99,"ممتاز",98,"ممتاز",99,"ممتاز","ناجح"]
[6004,30702251603579,"مدرسة سبطاس المشتركة تعليم أساسي","احمد ابراهيم عبد النبي احمد البزاز","مسلم","الأول","2013 / 2012",98,"ممتاز",95,"ممتاز",95,"ممتاز",100,"ممتاز",98,"ممتاز",486,"ممتاز",98,"ممتاز",98,"ممتاز",99,"ممتاز",99,"ممتاز",98,"ممتاز",99,"ممتاز","ناجح"]
[6005,30703201602691,"مدرسة سبطاس المشتركة تعليم أساسي","احمد الامير السيد سليمان الصياد","مسلم","الأول","2013 / 2012",99,"ممتاز",98,"ممتاز",99,"ممتاز",97,"ممتاز",98,"ممتاز",491,"ممتاز",100,"ممتاز",99,"ممتاز",98,"ممتاز",99,"ممتاز",98,"ممتاز",98,"ممتاز","ناجح"]
[6006,30703271602397,"مدرسة سبطاس المشتركة تعليم أساسي","احمد حسن السيد طه الجعار","مسلم","الأول","2013 / 2012",90,"ممتاز",79,"جيد جدا",90,"ممتاز",85,"ممتاز",89,"ممتاز",433,"ممتاز",99,"ممتاز",98,"Okkk",99,"ممتاز",99,"ممتاز",98,"ممتاز",99,"ممتاز","ناجح"]
[6007,30708051600875,"مدرسة سبطاس المشتركة تعليم أساسي","احمد رباح محمد مصطفى السعدني","مسلم","الأول","2013 / 2012",82,"جيد جدا",81,"جيد جدا",88,"ممتاز",72,"جيد",90,"ممتاز",413,"جيد جدا",92,"ممتاز",98,"ممتاز",99,"ممتاز",99,"ممتاز",98,"ممتاز",99,"ممتاز","ناجح"]
[6008,30711251603233,"مدرسة سبطاس المشتركة تعليم أساسي","احمد محمد احمد بكر","مسلم","الأول","2013 / 2012",82,"جيد جدا",79,"جيد جدا",91,"ممتاز",87,"ممتاز",89,"ممتاز",428,"ممتاز",98,"ممتاز",99,"ممتاز",99,"ممتاز",99,"ممتاز",99,"ممتاز",98,"ممتاز","ناجح"]
[6009,30611281601753,"مدرسة سبطاس المشتركة تعليم أساسي","احمد ياسر سعد وصال","مسلم","الأول","2013 / 2012",93,"ممتاز",95,"ممتاز",92,"ممتاز",85,"ممتاز",92,"ممتاز",457,"ممتاز",98,"ممتاز",98,"ممتاز",99,"ممتاز",98,"ممتاز",98,"ممتاز",99,"ممتاز","ناجح"]
[6010,30702261601752,"مدرسة سبطاس المشتركة تعليم أساسي","اسامه هشام عبد العزيز شبل عبد السلام","مسلم","الأول","2013 / 2012",96,"ممتاز",99,"ممتاز",98,"ممتاز",86,"ممتاز",100,"ممتاز",479,"ممتاز",100,"ممتاز",99,"ممتاز",98,"ممتاز",99,"ممتاز",99,"ممتاز",99,"ممتاز","ناجح"]
[6011,30706071601514,"مدرسة سبطاس المشتركة تعليم أساسي","السيد محمود السيد علي عبد المنعم","مسلم","الأول","2013 / 2012",94,"ممتاز",86,"ممتاز",95,"ممتاز",100,"ممتاز",98,"ممتاز",473,"ممتاز",99,"ممتاز",98,"ممتاز",99,"ممتاز",99,"ممتاز",98,"ممتاز",99,"ممتاز","ناجح"]
[6012,30706261600336,"مدرسة سبطاس المشتركة تعليم أساسي","امير احمد مظهر سعد عطية","مسلم","الأول","2013 / 2012",100,97,99,"ممتاز",99,"ممتاز",96,"ممتاز",97,"ممتاز",491,"ممتاز",99,"ممتاز",98,"ممتاز",99,"ممتاز",98,"ممتاز",98,"ممتاز",98,"ممتاز","ناجح"]
[6013,30708301602135,"مدرسة سبطاس المشتركة تعليم أساسي","بلال إيهاب إبراهيم محمد رشاد","مسلم","الأول","2013 / 2012",71,"جيد",74,"جيد",73,"جيد",68,"جيد",79,"جيد جدا",365,"جيد",84,"جيد جدا",98,"ممتاز",99,"ممتاز",99,"ممتاز",99,"ممتاز",99,"ممتاز","ناجح"]
[6014,30708011601771,"مدرسة سبطاس المشتركة تعليم أساسي","سيف تامر سيف الدين ابراهيم عبد العزيز","مسلم","الأول","2013 / 2012",93,"ممتاز",95,"ممتاز",96,"ممتاز",93,"ممتاز",94,"ممتاز",471,"ممتاز",96,"ممتاز",99,"ممتاز",98,"ممتاز",99,"ممتاز",99,"ممتاز",99,"ممتاز","ناجح"]
[6015,30708221602533,"مدرسة سبطاس المشتركة تعليم أساسي","سيف محمد مسعد محمد زيدان","مسلم","الأول","2013 / 2012",89,"ممتاز",94,"ممتاز",93,"ممتاز",94,"ممتاز",90,"ممتاز",460,"ممتاز",99,"ممتاز",98,"ممتاز",99,"ممتاز",98,"ممتاز",99,"ممتاز",98,"ممتاز","ناجح"]

{"sheet":"2014","index":2,"n_rows":25,"n_cols":37,"rows_kept":25,"cut":false,"hidden":false,"merged":[[4,33,8,33],[6,26,7,26],[3,31,8,31],[3,32,3,35],[4,35,8,35],[3,36,8,36],[4,7,5,8],[4,9,5,10],[4,11,5,12],[4,13,5,14],[4,15,5,16],[4,19,5,20],[4,21,5,22],[4,23,5,24],[4,25,5,26],[3,7,3,16],[3,17,5,17],[3,18,7,18],[3,19,3,30],[7,17,8,17],[4,34,8,34],[0,7,1,25],[0,26,1,32],[2,7,2,19],[6,28,7,28],[6,30,7,30],[6,8,8,8],[6,10,8,10],[6,12,8,12],[6,14,8,14],[6,16,8,16],[6,20,7,20],[6,22,7,22],[6,24,8,24],[4,27,5,28],[4,29,5,30],[4,32,8,32],[3,5,6,5],[3,6,6,6],[3,1,6,1],[3,0,6,0],[3,2,6,2],[3,3,6,3],[3,4,6,4]]}
[null,null,"محافظة : الغربية",null,null,null,null,"نتيجة  الصف السادس الابتدائى ـ  آخـــر العام",null,null,null,null,null,null,null,null,null,null,null,null,null,null,null,null,null,null,"2019  /  2018"]
[null,null,"إدارة : إدارة شرق طنطا التعليمية"]
[null,null,"قسم : شئون الطلاب والامتحانات"]
["رقــم الجلوس","الرقم القومي","اسم المدرسة","اسم الطالب","الديـــانـــة","الــــــــدور","العام الدراسي","مواد أساسية ـ تضاف للمجموع",null,null,null,null,null,null,null,null,null,"المجموع الكلى","التقدير","مـواد  لا تضاف للمجموع الكلى",null,null,null,null,null,null,null,null,null,null,null,"نتيجة آخر العام","بيانات الحوالة أو القسيمة",null,null,null,"الجهة المقدم إليها"]
[null,null,null,null,null,null,null,"اللغة العربية",null,"الرياضيات",null,"الدراسات",null,"العلوم",null,"اللغة الانجليزية",null,null,null,"تربية دينية",null,"اختيارى ( 1 ) ",null,"اختيارى ( 2 ) ",null,"نشاط رياضى",null,"تربية فنية",null,"حاسب آلى",null,null,"رقم القسيمة","تاريخ القسيمة","مبلغ القسيمة","وسويت لحساب"]
[]
[null,null,null,null,null,null,null,100,"التقدير",100,"التقدير",100,"التقدير",100,"التقدير",100,"التقدير",500,null,100,"التقدير",100,"التقدير",100,"التقدير",100,"التقدير",100,"التقدير",100,"التقدير"]
[null,null,null,null,null,null,null,50,null,50,null,50,null,50,null,50,null,250,null,50,null,50,null,50,null,50,null,50,null,50]
[]
[6031,30701251604439,"مدرسة سبطاس المشتركة تعليم أساسي","كريم محمد فؤاد ممدوح عزام","مسلم","الأول","2014 / 2013",90,"ممتاز",91,"ممتاز",93,"ممتاز",95,"ممتاز",96,"ممتاز",465,"ممتاز",97,"ممتاز",98,"ممتاز",99,"ممتاز",98,"ممتاز",99,"ممتاز",99,"ممتاز","ناجح"]
[6032,30610181600796,"مدرسة سبطاس المشتركة تعليم أساسي","متولي ابوالنصر متولي ابوالنصر محرم","مسلم","الأول","2014 / 2013",91,"ممتاز",84,"جيد جدا",94,"ممتاز",88,"ممتاز",95,"ممتاز",452,"ممتاز",99,"ممتاز",98,"ممتاز",99,"ممتاز",98,"ممتاز",99,"ممتاز",99,"ممتاز","ناجح"]
[6033,30709301601399,"مدرسة سبطاس المشتركة تعليم أساسي","محمد احمد محمد ابو النصر محرم","مسلم","الأول","2014 / 2013",87,"Ok",79,"جيد جدا",92,"ممتاز",94,"ممتاز",96,"ممتاز",448,"ممتاز",97,"ممتاز",98,"ممتاز",98,"ممتاز",98,"ممتاز",99,"ممتاز",99,"ممتاز","ناجح"]
[6034,30702011605558,"مدرسة سبطاس المشتركة تعليم أساسي","محمد بسيوني السيد علي النجار","مسلم","الأول","2014 / 2013",94,"ممتاز",85,"ممتاز",96,"ممتاز",91,"ممتاز",97,"ممتاز",463,"ممتاز",100,"ممتاز",98,"ممتاز",99,"ممتاز",99,"ممتاز",98,"ممتاز",98,"ممتاز","ناجح"]
[6035,30608131600898,"مدرسة سبطاس المشتركة تعليم أساسي","محمد ربيع احمد السيد فودة","مسلم","الأول","2014 / 2013",61,"مقبول",61,"مقبول",68,"جيد",66,"جيد",76,"جيد جدا",332,"جيد",90,"ممتاز",98,"ممتاز",98,"ممتاز",99,"ممتاز",98,"ممتاز",99,"ممتاز","ناجح"]
[6036,30607281601357,"مدرسة سبطاس المشتركة تعليم أساسي","محمد رضا محمد شعبان محمد الأعور","مسلم","الأول","2014 / 2013",76,"جيد جدا",61,"مقبول",68,"جيد",68,"جيد",77,"جيد جدا",350,"جيد",88,"ممتاز",98,"ممتاز",99,"ممتاز",98,"ممتاز",98,"ممتاز",98,"ممتاز","ناجح"]
[6037,30708211602454,"مدرسة سبطاس المشتركة تعليم أساسي","محمد سليمان على احمد مطاوع","مسلم","الأول","2014 / 2013",99,"ممتاز",93,"ممتاز",99,"ممتاز",94,"ممتاز",96,"ممتاز",481,"ممتاز",96,"ممتاز",98,"ممتاز",98,"ممتاز",99,"ممتاز",99,"ممتاز",99,"ممتاز","ناجح"]
[6038,30705311601154,"مدرسة سبطاس المشتركة تعليم أساسي","محمد سمير مختار محمد شحاتة","مسلم","الأول","2014 / 2013",94,"ممتاز",96,"ممتاز",98,"ممتاز",97,"ممتاز",99,"ممتاز",484,"ممتاز",98,"ممتاز",98,"ممتاز",99,"ممتاز",98,"ممتاز",99,"ممتاز",99,"ممتاز","ناجح"]
[6039,30709051600219,"مدرسة سبطاس المشتركة تعليم أساسي","محمد عبد الجواد محمد عبد الله زويل","مسلم","الأول","2014 / 2013",78,"جيد جدا",75,"جيد جدا",81,"جيد جدا",86,"ممتاز",84,"جيد جدا",404,"جيد جدا",91,"ممتاز",99,"ممتاز",98,"ممتاز",99,"ممتاز",99,"ممتاز",99,"ممتاز","ناجح"]
[6040,30708241602033,"مدرسة سبطاس المشتركة تعليم أساسي","محمد مصطفى عبد القوي محمد عوض","مسلم","الأول","2014 / 2013",79,"جيد جدا",86,"ممتاز",71,"جيد",70,"جيد",78,"جيد جدا",384,"جيد جدا",82,"جيد جدا",98,"ممتاز",99,"ممتاز",98,"ممتاز",98,"ممتاز",98,"ممتاز","ناجح"]
[6041,30709291601271,"مدرسة سبطاس المشتركة تعليم أساسي","محمد وليد عبد الفضيل احمد بكر","مسلم","الأول","2014 / 2013",76,"جيد جدا",72,"جيد",80,"جيد جدا",72,"جيد",88,"ممتاز",388,"جيد جدا",92,"ممتاز",99,"ممتاز",98,"ممتاز",98,"ممتاز",98,"ممتاز",99,"ممتاز","ناجح"]
[6042,30611271601518,"مدرسة سبطاس المشتركة تعليم أساسي","مروان محمد عزت زارع سعد","مسلم","الأول","2014 / 2013",69,"جيد",70,"جيد",71,"جيد",68,"جيد",79,"جيد جدا",357,"جيد",86,"ممتاز",98,"ممتاز",99,"ممتاز",98,"ممتاز",99,"ممتاز",99,"ممتاز","ناجح"]
[6043,30708111601299,"مدرسة سبطاس المشتركة تعليم أساسي","معتز احمد محمد علي الخولي","مسلم","الأول","2014 / 2013",70,"جيد",72,"جيد",80,"جيد جدا",75,"جيد جدا",79,"جيد جدا",376,"جيد جدا",90,"ممتاز",99,"ممتاز",98,"ممتاز",98,"ممتاز",99,"ممتاز",98,"ممتاز","ناجح"]
[6044,30709161600974,"مدرسة سبطاس المشتركة تعليم أساسي","ياسر ربيع مختار عبد الحميد يوسف","مسلم","الأول","2014 / 2013",97,"ممتاز",100,"ممتاز",100,"ممتاز",94,"ممتاز",100,"ممتاز",491,"ممتاز",100,"ممتاز",98,"ممتاز",99,"ممتاز",99,"ممتاز",99,"ممتاز",98,"ممتاز","ناجح"]
[6045,30709291601255,"مدرسة سبطاس المشتركة تعليم أساسي","يوسف عادل على عطيه سرور","مسلم","الأول","2014 / 2013",93,"ممتاز",90,"ممتاز",91,"ممتاز",100,"ممتاز",90,"ممتاز",464,"ممتاز",98,"ممتاز",99,"ممتاز",99,"ممتاز",99,"ممتاز",98,"ممتاز",99,"ممتاز","ناجح"]
[6061,30707038800761,"مدرسة سبطاس المشتركة تعليم أساسي","داليا محمود حامد محمود","مسلمة","الأول","1905-07-07",94,"ممتاز",88,"ممتاز",89,"ممتاز",77,"جيد جدا",91,"ممتاز",439,"ممتاز",95,"ممتاز",99,"ممتاز",99,"ممتاز",99,"ممتاز",99,"ممتاز",99,"ممتاز","ناجح"]

{"sheet":"2015","index":3,"n_rows":14,"n_cols":37,"rows_kept":14,"cut":false,"hidden":false,"merged":[[4,33,8,33],[6,26,7,26],[3,31,8,31],[3,32,3,35],[4,35,8,35],[3,36,8,36],[4,7,5,8],[4,9,5,10],[4,11,5,12],[4,13,5,14],[4,15,5,16],[4,19,5,20],[4,21,5,22],[4,23,5,24],[4,25,5,26],[3,7,3,16],[3,17,5,17],[3,18,7,18],[3,19,3,30],[7,17,8,17],[4,34,8,34],[0,7,1,25],[0,26,1,32],[2,7,2,19],[6,28,7,28],[6,30,7,30],[6,8,8,8],[6,10,8,10],[6,12,8,12],[6,14,8,14],[6,16,8,16],[6,20,7,20],[6,22,7,22],[6,24,8,24],[4,27,5,28],[4,29,5,30],[4,32,8,32],[3,5,6,5],[3,6,6,6],[3,1,6,1],[3,0,6,0],[3,2,6,2],[3,3,6,3],[3,4,6,4]]}
[null,null,"محافظة : الغربية",null,null,null,null,"نتيجة  الصف السادس الابتدائى ـ  آخـــر العام",null,null,null,null,null,null,null,null,null,null,null,null,null,null,null,null,null,null,"2019  /  2018"]
[null,null,"إدارة : إدارة شرق طنطا التعليمية"]
[null,null,"قسم : شئون الطلاب والامتحانات"]
["رقــم الجلوس","الرقم القومي","اسم المدرسة","اسم الطالب","الديـــانـــة","الــــــــدور","العام الدراسي","مواد أساسية ـ تضاف للمجموع",null,null,null,null,null,null,null,null,null,"المجموع الكلى","التقدير","مـواد  لا تضاف للمجموع الكلى",null,null,null,null,null,null,null,null,null,null,null,"نتيجة آخر العام","بيانات الحوالة أو القسيمة",null,null,null,"الجهة المقدم إليها"]
[null,null,null,null,null,null,null,"اللغة العربية",null,"الرياضيات",null,"الدراسات",null,"العلوم",null,"اللغة الانجليزية",null,null,null,"تربية دينية",null,"اختيارى ( 1 ) ",null,"اختيارى ( 2 ) ",null,"نشاط رياضى",null,"تربية فنية",null,"حاسب آلى",null,null,"رقم القسيمة","تاريخ القسيمة","مبلغ القسيمة","وسويت لحساب"]
[]
[null,null,null,null,null,null,null,100,"التقدير",100,"التقدير",100,"التقدير",100,"التقدير",100,"التقدير",500,null,100,"التقدير",100,"التقدير",100,"التقدير",100,"التقدير",100,"التقدير",100,"التقدير"]
[null,null,null,null,null,null,null,50,null,50,null,50,null,50,null,50,null,250,null,50,null,50,null,50,null,50,null,50,null,50]
[]
[6061,30707038800761,"مدرسة سبطاس المشتركة تعليم أساسي","داليا محمود حامد محمود","مسلمة","الأول",2015,94,"ممتاز",88,"ممتاز",89,"ممتاز",77,"جيد جدا",91,"ممتاز",439,"ممتاز",95,"ممتاز",99,"ممتاز",99,"ممتاز",99,"ممتاز",99,"ممتاز",99,"ممتاز","ناجح"]
[6062,30710121600783,"مدرسة سبطاس المشتركة تعليم أساسي","دعاء محمد سليمان احمد شلبي","مسلمة","الأول",2015,99,"ممتاز",100,"ممتاز",100,"ممتاز",100,"ممتاز",98,"ممتاز",497,"ممتاز",98,"ممتاز",98,"ممتاز",99,"ممتاز",98,"ممتاز",98,"ممتاز",99,"ممتاز","ناجح"]
[6063,30701011623002,"مدرسة سبطاس المشتركة تعليم أساسي","دنيا وليد علي محمد حجاج","مسلمة","الأول",2015,80,"جيد جدا",88,"ممتاز",88,"ممتاز",82,"جيد جدا",86,"ممتاز",424,"جيد جدا",97,"ممتاز",99,"ممتاز",98,"ممتاز",98,"ممتاز",98,"ممتاز",99,"ممتاز","ناجح"]
[6064,30612111600287,"مدرسة سبطاس المشتركة تعليم أساسي","روان جوده محمد المغاوري حسين","مسلمة","الأول",2015,98,"ممتاز",99,"ممتاز",96,"ممتاز",91,"ممتاز",96,"ممتاز",480,"ممتاز",100,"ممتاز",98,"ممتاز",99,"ممتاز",98,"ممتاز",99,"ممتاز",99,"ممتاز","ناجح"]
[6065,30708181604805,"مدرسة سبطاس المشتركة تعليم أساسي","زينب محمد عبد الرحمن محمد محرم","مسلمة","الأول",2015,95,"ممتاز",99,"ممتاز",98,"ممتاز",94,"ممتاز",96,"ممتاز",482,"ممتاز",100,"ممتاز",99,"ممتاز",98,"ممتاز",99,"ممتاز",98,"ممتاز",98,"ممتاز","ناجح"]

{"sheet":"2016","index":4,"n_rows":18,"n_cols":37,"rows_kept":18,"cut":false,"hidden":false,"merged":[[0,7,1,25],[0,26,1,32],[2,7,2,19],[3,0,6,0],[3,1,6,1],[3,2,6,2],[3,3,6,3],[3,4,6,4],[3,5,6,5],[3,6,6,6],[3,36,8,36],[4,7,5,8],[4,9,5,10],[4,11,5,12],[4,13,5,14],[4,15,5,16],[4,19,5,20],[4,21,5,22],[4,23,5,24],[4,25,5,26],[3,7,3,16],[3,17,5,17],[3,18,7,18],[3,19,3,30],[3,31,8,31],[3,32,3,35],[4,35,8,35],[6,8,8,8],[6,10,8,10],[6,12,8,12],[6,14,8,14],[6,16,8,16],[6,20,7,20],[6,22,7,22],[6,24,8,24],[4,27,5,28],[4,29,5,30],[4,32,8,32],[4,33,8,33],[6,26,7,26],[6,28,7,28],[6,30,7,30],[7,17,8,17],[4,34,8,34]]}
[null,null,"محافظة : الغربية",null,null,null,null,"نتيجة  الصف السادس الابتدائى ـ  آخـــر العام",null,null,null,null,null,null,null,null,null,null,null,null,null,null,null,null,null,null,"2019  /  2018"]
[null,null,"إدارة : إدارة شرق طنطا التعليمية"]
[null,null,"قسم : شئون الطلاب والامتحانات"]
["رقــم الجلوس","الرقم القومي","اسم المدرسة","اسم الطالب","الديـــانـــة","الــــــــدور","العام الدراسي","مواد أساسية ـ تضاف للمجموع",null,null,null,null,null,null,null,null,null,"المجموع الكلى","التقدير","مـواد  لا تضاف للمجموع الكلى",null,null,null,null,null,null,null,null,null,null,null,"نتيجة آخر العام","بيانات الحوالة أو القسيمة",null,null,null,"الجهة المقدم إليها"]
[null,null,null,null,null,null,null,"اللغة العربية",null,"الرياضيات",null,"الدراسات",null,"العلوم",null,"اللغة الانجليزية",null,null,null,"تربية دينية",null,"اختيارى ( 1 ) ",null,"اختيارى ( 2 ) ",null,"نشاط رياضى",null,"تربية فنية",null,"حاسب آلى",null,null,"رقم القسيمة","تاريخ القسيمة","مبلغ القسيمة","وسويت لحساب"]
[]
[null,null,null,null,null,null,null,100,"التقدير",100,"التقدير",100,"التقدير",100,"التقدير",100,"التقدير",500,null,100,"التقدير",100,"التقدير",100,"التقدير",100,"التقدير",100,"التقدير",100,"التقدير"]
[null,null,null,null,null,null,null,50,null,50,null,50,null,50,null,50,null,250,null,50,null,50,null,50,null,50,null,50,null,50]
[]
[6067,30503281601004,"مدرسة سبطاس المشتركة تعليم أساسي","سهام طارق السيد السباعي يوسف","مسلمة","الثاني",2016,77,"جيد جدا",74,"جيد",76,"جيد جدا",68,"جيد",83,"جيد جدا",378,"جيد جدا",90,"ممتاز",98,"ممتاز",99,"ممتاز",98,"ممتاز",98,"ممتاز",99,"ممتاز","ناجح"]
[6068,30610161600749,"مدرسة سبطاس المشتركة تعليم أساسي","شهد شاكر عبد الرؤوف عبد النبي خميس","مسلمة","الثاني",2016,95,"ممتاز",87,"ممتاز",84,"جيد جدا",84,"جيد جدا",93,"ممتاز",443,"ممتاز",95,"ممتاز",98,"ممتاز",99,"ممتاز",99,"ممتاز",99,"ممتاز",98,"ممتاز","ناجح"]
[6069,30612261601249,"مدرسة سبطاس المشتركة تعليم أساسي","شيماء زكريا مصطفى احمد النويهي","مسلمة","الثاني",2016,95,"ممتاز",91,"ممتاز",83,"جيد جدا",93,"ممتاز",92,"ممتاز",454,"ممتاز",96,"ممتاز",99,"ممتاز",98,"ممتاز",99,"ممتاز",98,"ممتاز",99,"ممتاز","ناجح"]
[6070,30708241601525,"مدرسة سبطاس المشتركة تعليم أساسي","عطيات خطاب عبد العزيز احمد خطاب","مسلمة","الثاني",2016,99,"ممتاز",95,"ممتاز",100,"ممتاز",99,"ممتاز",96,"ممتاز",489,"ممتاز",100,"ممتاز",98,"ممتاز",99,"ممتاز",98,"ممتاز",99,"ممتاز",99,"ممتاز","ناجح"]
[6071,30705281602002,"مدرسة سبطاس المشتركة تعليم أساسي","فاطمه احمد حسين راغب مطاوع","مسلمة","الأول",2017,94,"ممتاز",90,"ممتاز",85,"ممتاز",90,"ممتاز",96,"ممتاز",455,"ممتاز",100,"ممتاز",98,"ممتاز",99,"ممتاز",99,"ممتاز",99,"ممتاز",99,"ممتاز","ناجح"]
[6072,30709011605749,"مدرسة سبطاس المشتركة تعليم أساسي","فاطمه عادل ربيع ابراهيم مطاوع","مسلمة","الأول",2017,100,"ممتاز",97,"ممتاز",94,"ممتاز",95,"ممتاز",100,"ممتاز",486,"ممتاز",100,"ممتاز",98,"ممتاز",98,"ممتاز",98,"ممتاز",99,"ممتاز",98,"ممتاز","ناجح"]
[6073,30702171603187,"مدرسة سبطاس المشتركة تعليم أساسي","فاطمه فايز علي محمود الشعراوي","مسلمة","الأول",2017,99,"ممتاز",97,"ممتاز",90,"ممتاز",95,"ممتاز",97,"ممتاز",478,"ممتاز",100,"ممتاز",98,"ممتاز",98,"ممتاز",98,"ممتاز",98,"ممتاز",98,"ممتاز","ناجح"]
[6074,30709161600761,"مدرسة سبطاس المشتركة تعليم أساسي","فرحه علاء كمال السيد البيومي","مسلمة","الأول",2017,97,"ممتاز",88,"ممتاز",93,"ممتاز",95,"ممتاز",96,"ممتاز",469,"ممتاز",100,"ممتاز",98,"ممتاز",99,"ممتاز",98,"ممتاز",98,"ممتاز",99,"ممتاز","ناجح"]
[6075,30702171603209,"مدرسة سبطاس المشتركة تعليم أساسي","مريم","مسلمة","الأول",2017,97,"ممتاز",99,"ممتاز",94,"ممتاز",98,"ممتاز",97,"ممتاز",485,"ممتاز",100,"ممتاز",98,"ممتاز",99,"ممتاز",98,"ممتاز",99,"ممتاز",98,"ممتاز","ناجح"]

{"sheet":"2017","index":5,"n_rows":18,"n_cols":37,"rows_kept":18,"cut":false,"hidden":false,"merged":[[0,7,1,25],[0,26,1,32],[2,7,2,19],[3,0,6,0],[3,1,6,1],[3,2,6,2],[3,3,6,3],[3,4,6,4],[3,5,6,5],[3,6,6,6],[3,36,8,36],[4,7,5,8],[4,9,5,10],[4,11,5,12],[4,13,5,14],[4,15,5,16],[4,19,5,20],[4,21,5,22],[4,23,5,24],[4,25,5,26],[3,7,3,16],[3,17,5,17],[3,18,7,18],[3,19,3,30],[3,31,8,31],[3,32,3,35],[4,35,8,35],[6,8,8,8],[6,10,8,10],[6,12,8,12],[6,14,8,14],[6,16,8,16],[6,20,7,20],[6,22,7,22],[6,24,8,24],[4,27,5,28],[4,29,5,30],[4,32,8,32],[4,33,8,33],[6,26,7,26],[6,28,7,28],[6,30,7,30],[7,17,8,17],[4,34,8,34]]}
[null,null,"محافظة : الغربية",null,null,null,null,"نتيجة  الصف السادس الابتدائى ـ  آخـــر العام",null,null,null,null,null,null,null,null,null,null,null,null,null,null,null,null,null,null,"2019  /  2018"]
[null,null,"إدارة : إدارة شرق طنطا التعليمية"]
[null,null,"قسم : شئون الطلاب والامتحانات"]
["رقــم الجلوس","الرقم القومي","اسم المدرسة","اسم الطالب","الديـــانـــة","الــــــــدور","العام الدراسي","مواد أساسية ـ تضاف للمجموع",null,null,null,null,null,null,null,null,null,"المجموع الكلى","التقدير","مـواد  لا تضاف للمجموع الكلى",null,null,null,null,null,null,null,null,null,null,null,"نتيجة آخر العام","بيانات الحوالة أو القسيمة",null,null,null,"الجهة المقدم إليها"]
[null,null,null,null,null,null,null,"اللغة العربية",null,"الرياضيات",null,"الدراسات",null,"العلوم",null,"اللغة الانجليزية",null,null,null,"تربية دينية",null,"اختيارى ( 1 ) ",null,"اختيارى ( 2 ) ",null,"نشاط رياضى",null,"تربية فنية",null,"حاسب آلى",null,null,"رقم القسيمة","تاريخ القسيمة","مبلغ القسيمة","وسويت لحساب"]
[]
[null,null,null,null,null,null,null,100,"التقدير",100,"التقدير",100,"التقدير",100,"التقدير",100,"التقدير",500,null,100,"التقدير",100,"التقدير",100,"التقدير",100,"التقدير",100,"التقدير",100,"التقدير"]
[null,null,null,null,null,null,null,50,null,50,null,50,null,50,null,50,null,250,null,50,null,50,null,50,null,50,null,50,null,50]
[]
[6067,30503281601004,"مدرسة سبطاس المشتركة تعليم أساسي","سهام طارق السيد السباعي يوسف","مسلمة","الثاني",2016,77,"جيد جدا",74,"جيد",76,"جيد جدا",68,"جيد",83,"جيد جدا",378,"جيد جدا",90,"ممتاز",98,"ممتاز",99,"ممتاز",98,"ممتاز",98,"ممتاز",99,"ممتاز","ناجح"]
[6068,30610161600749,"مدرسة سبطاس المشتركة تعليم أساسي","شهد شاكر عبد الرؤوف عبد النبي خميس","مسلمة","الثاني",2016,95,"ممتاز",87,"ممتاز",84,"جيد جدا",84,"جيد جدا",93,"ممتاز",443,"ممتاز",95,"ممتاز",98,"ممتاز",99,"ممتاز",99,"ممتاز",99,"ممتاز",98,"ممتاز","ناجح"]
[6069,30612261601249,"مدرسة سبطاس المشتركة تعليم أساسي","شيماء زكريا مصطفى احمد النويهي","مسلمة","الثاني",2016,95,"ممتاز",91,"ممتاز",83,"جيد جدا",93,"ممتاز",92,"ممتاز",454,"ممتاز",96,"ممتاز",99,"ممتاز",98,"ممتاز",99,"ممتاز",98,"ممتاز",99,"ممتاز","ناجح"]
[6070,30708241601525,"مدرسة سبطاس المشتركة تعليم أساسي","عطيات خطاب عبد العزيز احمد خطاب","مسلمة","الثاني",2016,99,"ممتاز",95,"ممتاز",100,"ممتاز",99,"ممتاز",96,"ممتاز",489,"ممتاز",100,"ممتاز",98,"ممتاز",99,"ممتاز",98,"ممتاز",99,"ممتاز",99,"ممتاز","ناجح"]
[6071,30705281602002,"مدرسة سبطاس المشتركة تعليم أساسي","فاطمه احمد حسين راغب مطاوع","مسلمة","الأول",2017,94,"ممتاز",90,"ممتاز",85,"ممتاز",90,"ممتاز",96,"ممتاز",455,"ممتاز",100,"ممتاز",98,"ممتاز",99,"ممتاز",99,"ممتاز",99,"ممتاز",99,"ممتاز","ناجح"]
[6072,30709011605749,"مدرسة سبطاس المشتركة تعليم أساسي","فاطمه عادل ربيع ابراهيم مطاوع","مسلمة","الأول",2017,100,"ممتاز",97,"ممتاز",94,"ممتاز",95,"ممتاز",100,"ممتاز",486,"ممتاز",100,"ممتاز",98,"ممتاز",98,"ممتاز",98,"ممتاز",99,"ممتاز",98,"ممتاز","ناجح"]
[6073,30702171603187,"مدرسة سبطاس المشتركة تعليم أساسي","فاطمه فايز علي محمود الشعراوي","مسلمة","الأول",2017,99,"ممتاز",97,"ممتاز",90,"ممتاز",95,"ممتاز",97,"ممتاز",478,"ممتاز",100,"ممتاز",98,"ممتاز",98,"ممتاز",98,"ممتاز",98,"ممتاز",98,"ممتاز","ناجح"]
[6074,30709161600761,"مدرسة سبطاس المشتركة تعليم أساسي","فرحه علاء كمال السيد البيومي","مسلمة","الأول",2017,97,"ممتاز",88,"ممتاز",93,"ممتاز",95,"ممتاز",96,"ممتاز",469,"ممتاز",100,"ممتاز",98,"ممتاز",99,"ممتاز",98,"ممتاز",98,"ممتاز",99,"ممتاز","ناجح"]
[6075,30702171603209,"مدرسة سبطاس المشتركة تعليم أساسي","مريم","مسلمة","الأول",2017,97,"ممتاز",99,"ممتاز",94,"ممتاز",98,"ممتاز",97,"ممتاز",485,"ممتاز",100,"ممتاز",98,"ممتاز",99,"ممتاز",98,"ممتاز",99,"ممتاز",98,"ممتاز","ناجح"]

{"sheet":"Report","index":6,"n_rows":18,"n_cols":13,"rows_kept":18,"cut":false,"hidden":false,"merged":[[18,0,18,12],[19,0,19,12],[10,0,11,0],[10,1,10,5],[10,6,11,6],[10,7,10,12],[16,0,16,12],[17,0,17,12],[8,1,8,3],[8,4,8,5],[8,6,8,10],[4,1,4,2],[4,3,4,4],[4,5,4,12],[5,0,5,1],[5,2,5,5],[5,6,5,7],[5,8,5,12],[6,0,6,5],[6,6,6,12],[7,3,7,4],[7,6,7,7],[7,10,7,12],[3,10,3,12],[0,0,0,2],[0,4,1,9],[1,0,1,2],[3,0,3,3],[3,4,3,8]]}
["إدارة شرق طنطا التعليمية",null,null,null,"بيان نجاح بالدرجات"]
["شئون الطلبة"]
[]
["بالكشف في سجـلات النـاجحـين بمدرســــــة : ",null,null,null,{"$f":"IF(Home!$AN$14=\"ناجح\",Home!AB6,\"\")","v":""},null,null,null,null,"شعبـــة :","عـــــــــــــــــام"]
["الـــــــــــــدور : ",{"$f":"IF(Home!$AN$14=\"ناجح\",Home!AI8,\"\")","v":""},null,"وجـــد أن الطــالب :",null,{"$f":"IF(Home!$AN$14=\"ناجح\",Home!AB4,\"\")","v":""}]
["منقــــــول مــــن الصـــف :",null,"الســــــــــــادس الابتـــــدائــــي",null,null,null,"إلى الصـــــــــف :",null,"الأول الإعـــــــــدادي"]
["وقــد استخــرج هـذا البيــــان بعــد سـداد الرسم المقرر بنــاء على طلب : ",null,null,null,null,null,{"$f":"IF(Home!$AN$14=\"ناجح\",Home!AK19,\"\")","v":""}]
["وســـــدد بالحـوالة أو القسيمـة رقـم :",null,null,{"$f":"IF(Home!$AN$14=\"ناجح\",Home!AB17,\"\")","v":""},null,"بتاريـــخ :",{"$f":"IF(Home!$AN$14=\"ناجح\",Home!AF17,\"\")","v":""},null,null,"بمبلــــغ :",{"$f":"IF(Home!$AN$14=\"ناجح\",Home!AJ17,\"\")","v":""}]
["وسويت لحساب :",{"$f":"IF(Home!$AN$14=\"ناجح\",Home!AM17,\"\")","v":""},null,null,"لتقديمها إلى : ",null,{"$f":"IF(Home!$AN$14=\"ناجح\",Home!AC19,\"\")","v":""},null,null,null,null,"ودرجاته كالآتي :-"]
[]
["المواد الدراسيه","مواد تضاف للمجموع",null,null,null,null,"المجموع الكلى","مواد لا تضاف للمجموع"]
[null,"لغه عربية","رياضيات","دراسات","علوم","لغة انجليزية",null,"نشاط1","نشاط2","التربية الدينية","تربية رياضية","تربية فنية","حاسب آلى"]
["النهاية الكبرى",{"$f":"[1]Home!B8","v":100},{"$f":"[1]Home!C8","v":100},{"$f":"[1]Home!D8","v":100},{"$f":"[1]Home!E8","v":100},{"$f":"[1]Home!F8","v":100},{"$f":"[1]Home!G8","v":500},{"$f":"[1]Home!H8","v":100},{"$f":"[1]Home!I8","v":100},{"$f":"[1]Home!J8","v":100},{"$f":"[1]Home!K8","v":100},{"$f":"[1]Home!L8","v":100},{"$f":"[1]Home!M8","v":100}]
["النهاية الصغرى",{"$f":"[1]Home!B9","v":50},{"$f":"[1]Home!C9","v":50},{"$f":"[1]Home!D9","v":50},{"$f":"[1]Home!E9","v":50},{"$f":"[1]Home!F9","v":50},{"$f":"[1]Home!G9","v":250},{"$f":"[1]Home!H9","v":50},{"$f":"[1]Home!I9","v":50},{"$f":"[1]Home!J9","v":50},{"$f":"[1]Home!K9","v":50},{"$f":"[1]Home!L9","v":50},{"$f":"[1]Home!M9","v":50}]
["الدرجــــــة",{"$f":"IF(Home!$AN$14=\"ناجح\",Home!AB14,\"\")","v":""},{"$f":"IF(Home!$AN$14=\"ناجح\",Home!AC14,\"\")","v":""},{"$f":"IF(Home!$AN$14=\"ناجح\",Home!AD14,\"\")","v":""},{"$f":"IF(Home!$AN$14=\"ناجح\",Home!AE14,\"\")","v":""},{"$f":"IF(Home!$AN$14=\"ناجح\",Home!AF14,\"\")","v":""},{"$f":"IF(Home!$AN$14=\"ناجح\",Home!AG14,\"\")","v":""},{"$f":"IF(Home!$AN$14=\"ناجح\",Home!AH14,\"\")","v":""},{"$f":"IF(Home!$AN$14=\"ناجح\",Home!AI14,\"\")","v":""},{"$f":"IF(Home!$AN$14=\"ناجح\",Home!AJ14,\"\")","v":""},{"$f":"IF(Home!$AN$14=\"ناجح\",Home!AK14,\"\")","v":""},{"$f":"IF(Home!$AN$14=\"ناجح\",Home!AL14,\"\")","v":""},{"$f":"IF(Home!$AN$14=\"ناجح\",Home!AM14,\"\")","v":""}]
["التقديــر",{"$f":"IF(Home!$AN$14=\"ناجح\",Home!AB15,\"\")","v":""},{"$f":"IF(Home!$AN$14=\"ناجح\",Home!AC15,\"\")","v":""},{"$f":"IF(Home!$AN$14=\"ناجح\",Home!AD15,\"\")","v":""},{"$f":"IF(Home!$AN$14=\"ناجح\",Home!AE15,\"\")","v":""},{"$f":"IF(Home!$AN$14=\"ناجح\",Home!AF15,\"\")","v":""},{"$f":"IF(Home!$AN$14=\"ناجح\",Home!AG15,\"\")","v":""},{"$f":"IF(Home!$AN$14=\"ناجح\",Home!AH15,\"\")","v":""},{"$f":"IF(Home!$AN$14=\"ناجح\",Home!AI15,\"\")","v":""},{"$f":"IF(Home!$AN$14=\"ناجح\",Home!AJ15,\"\")","v":""},{"$f":"IF(Home!$AN$14=\"ناجح\",Home!AK15,\"\")","v":""},{"$f":"IF(Home!$AN$14=\"ناجح\",Home!AL15,\"\")","v":""},{"$f":"IF(Home!$AN$14=\"ناجح\",Home!AM15,\"\")","v":""}]
[]
["هذا مع الإحاطة بأن هذا البيان لا يجوز تقديمة إلا للغرض الذي استخرج من أجله و أن أي كشط أو تغير في هذا البيان يلغيه ,"]

{"sheet":"Report2","index":7,"n_rows":25,"n_cols":27,"rows_kept":25,"cut":false,"hidden":false,"merged":[[22,1,22,12],[24,0,24,12],[24,14,24,26],[18,0,18,2],[18,15,18,26],[19,1,19,12],[20,15,20,26],[21,1,21,12],[21,15,21,26],[17,5,17,12],[17,14,17,16],[13,5,13,12],[13,16,13,21],[13,22,14,22],[15,2,15,7],[15,8,16,8],[15,9,16,11],[15,19,15,26],[16,2,16,7],[13,23,14,25],[14,8,14,12],[14,16,14,21],[11,0,11,4],[11,5,11,12],[11,14,11,18],[11,19,11,26],[12,6,12,7],[12,9,12,10],[12,11,12,12],[12,22,12,26],[10,0,10,4],[10,5,10,12],[10,14,10,18],[10,19,10,26],[3,0,3,4],[3,14,3,18],[8,1,8,2],[8,4,8,6],[8,10,8,11],[8,15,8,16],[8,18,8,20],[8,24,8,25],[9,0,9,4],[9,5,9,12],[9,14,9,18],[9,19,9,26],[0,0,0,4],[0,14,0,18],[1,0,1,4],[1,14,1,18],[2,0,2,4],[2,14,2,18]]}
["محافظة الغربية",null,null,null,null,null,null,null,null,null,null,null,null,null,"محافظة الغربية"]
["مديرية التربية والتعليم ",null,null,null,null,null,null,null,null,null,null,null,null,null,"مديرية التربية والتعليم "]
["إدارة شرق طنطا التعليمية",null,null,null,null,null,null,null,null,null,null,null,null,null,"إدارة شرق طنطا التعليمية"]
["شئون الطلبة",null,null,null,null,null,null,null,null,null,null,null,null,null,"شئون الطلبة"]
[]
[]
[]
["بالكشف في سجل الناجحين في امتحان شهادة : الابتـــــــــــدائيـــــــــــــــة",null,null,null,null,null,null,null,null,null,null,null,null,null,"بالكشف في سجل الناجحين في امتحان شهادة : الابتــــــــدائيــــــــــــــة"]
["الدور :",{"$f":"IF([2]Home!$N$12=\"ناجح\",[2]Home!$I$6,\"\")","v":""},null,"قسم :","عـــــــــام",null,null,"في العام الدراسي :",null,null,{"$f":"IF([2]Home!$N$12=\"ناجح\",[2]Home!$C$6,\"\")","v":""},null,"وجد أن :",null,"الدور :",{"$f":"IF([2]Home!$N$12=\"راسب\",[2]Home!$I$6,\"\")","v":""},null,"قسم :","عـــــــــام",null,null,"في العام الدراسي :",null,null,{"$f":"IF([2]Home!$N$12=\"راسب\",[2]Home!$C$6,\"\")","v":""},null,"وجد أن :"]
["رقم جلوس الطالب كما ورد بالسجل : ",null,null,null,null,{"$f":"IF([2]Home!$N$12=\"ناجح\",[2]Home!$K$4,\"\")","v":""},null,null,null,null,null,null,null,null,"رقم جلوس الطالب كما ورد بالسجل : ",null,null,null,null,{"$f":"IF([2]Home!$N$12=\"راسب\",[2]Home!$K$4,\"\")","v":""}]
["اسـم الطالب كما هو مدون بالسجل : ",null,null,null,null,{"$f":"IF([2]Home!$N$12=\"ناجح\",[2]Home!$B$4,\"\")","v":""},null,null,null,null,null,null,null,null,"اسـم الطالب كما هو مدون بالسجل : ",null,null,null,null,{"$f":"IF([2]Home!$N$12=\"راسب\",[2]Home!$B$4,\"\")","v":""}]
["اسـم المدرسة التي تقدم منها للامتحان :",null,null,null,null,{"$f":"IF([2]Home!$N$12=\"ناجح\",[2]Home!$B$5,\"\")","v":""},null,null,null,null,null,null,null,null,"اسـم المدرسة التي تقدم منها للامتحان :",null,null,null,null,{"$f":"IF([2]Home!$N$12=\"راسب\",[2]Home!$B$5,\"\")","v":""}]
["مجموع الدرجات التي حصل عليها الطالب :",null,null,null,null,null,{"$f":"IF([2]Home!$N$12=\"ناجح\",[2]Home!$G$12,\"\")","v":""},null,"من",{"$f":"[1]Home2!G8","v":500},null,null,null,null,"وقد استخرج هذا البيان بعد سداد الرسوم المقررة بحوالة رقم : "]
[null,null,null,null,"فقط :",{"$f":"NoToTxt(G13,\"درجة\",\"نصف\")","v":{"$error":"#VALUE!"}},null,null,null,null,null,null,null,null,null,"جنيه",{"$f":"IF(P15=\"\",\"\",NoToTxt(P15,\"جنيه\",\"قرش\"))","v":""},null,null,null,null,null,"بتاريخ",{"$f":"IF([2]Home!$N$12=\"راسب\",[2]Home!$F$15,\"\")","v":""}]
["وقد استخرج هذا البيان بعد سداد الرسوم المقررة بحوالة رقم : ",null,null,null,null,null,null,null,null,null,null,null,null,null,null,{"$f":"IF([2]Home!$N$12=\"راسب\",[2]Home!$J$15,\"\")","v":""},"طابع دعم تعليمي بمبلغ جنيها واحدا"]
[null,"جنيه",{"$f":"NoToTxt(B17,\"جنيه\",\"قرش\")","v":{"$error":"#VALUE!"}},null,null,null,null,null,"بتاريخ",{"$f":"IF([2]Home!$N$12=\"ناجح\",[2]Home!$F$15,\"\")","v":""},null,null,null,null,null,"ولذلك لتقديم هذا البيان إلى : ",null,null,null,{"$f":"IF([2]Home!$N$12=\"راسب\",[2]Home!$D$17,\"\")","v":""}]
[null,{"$f":"IF([2]Home!$N$12=\"ناجح\",[2]Home!$J$15,\"\")","v":""},"طابع دعم تعليمي بمبلغ جنيها واحدا"]
[null,"ولذلك لتقديم هذا البيان إلى : ",null,null,null,{"$f":"IF([2]Home!$N$12=\"ناجح\",[2]Home!$D$17,\"\")","v":""},null,null,null,null,null,null,null,null,"ملاحظــــــات :"]
["ملاحظــــــات :",null,null,null,null,null,null,null,null,null,null,null,null,null,"-","على الجهة المقدم إليها هذا المستخرج التحقق بالأدلة والقرائن التي يتقدم بها نفس الطالب"]
["-","على الجهة المقدم إليها هذا المستخرج التحقق بالأدلة والقرائن التي يتقدم بها نفس الطالب",null,null,null,null,null,null,null,null,null,null,null,null,null,"الذي تقدم للامتحان المبين بهذا المستخرج ."]
[null,"الذي تقدم للامتحان المبين بهذا المستخرج .",null,null,null,null,null,null,null,null,null,null,null,null,"-","لا يجوز تقديم هذا البيان إلا للجهة التي استخرج من أجلها ."]
["-","لا يجوز تقديم هذا البيان إلا للجهة التي استخرج من أجلها .",null,null,null,null,null,null,null,null,null,null,null,null,"-","أي كشط أو تغيير في هذا البيان يلغيه ."]
["-","أي كشط أو تغيير في هذا البيان يلغيه ."]
[]
["وتفضلوا بقبول وافر الاحترام والقدير",null,null,null,null,null,null,null,null,null,null,null,null,null,"وتفضلوا بقبول وافر الاحترام والقدير"]

{"sheet":"Report3","index":8,"n_rows":30,"n_cols":42,"rows_kept":30,"cut":false,"hidden":false,"merged":[[29,0,29,4],[29,5,29,13],[31,0,31,13],[32,0,32,13],[27,4,27,8],[27,9,27,10],[27,11,27,13],[28,1,28,2],[28,3,28,4],[28,5,28,9],[28,10,28,13],[25,0,25,2],[25,3,25,5],[25,6,25,9],[25,10,25,13],[26,0,26,2],[26,3,26,5],[26,6,26,9],[26,10,26,13],[24,0,24,2],[24,3,24,5],[24,6,24,9],[24,10,24,13],[24,15,24,27],[24,29,24,41],[22,0,22,2],[22,3,22,5],[22,6,22,9],[22,10,22,13],[22,16,22,27],[23,0,23,2],[23,3,23,5],[23,6,23,9],[23,10,23,13],[20,30,20,41],[21,0,21,2],[21,3,21,5],[21,6,21,9],[21,10,21,13],[21,16,21,27],[21,30,21,41],[19,0,19,2],[19,3,19,5],[19,6,19,9],[19,10,19,13],[19,16,19,27],[20,0,20,2],[20,3,20,5],[20,6,20,9],[20,10,20,13],[18,0,18,2],[18,3,18,5],[18,6,18,9],[18,10,18,13],[18,15,18,17],[18,30,18,41],[17,0,17,2],[17,3,17,5],[17,6,17,9],[17,10,17,13],[17,20,17,27],[17,29,17,31],[15,24,16,26],[15,34,15,41],[16,0,16,2],[16,3,16,5],[16,6,16,9],[16,10,16,13],[16,17,16,22],[15,0,15,2],[15,3,15,5],[15,6,15,9],[15,10,15,13],[15,17,15,22],[15,23,16,23],[14,0,14,2],[14,3,14,5],[14,6,14,9],[14,10,14,13],[14,23,14,27],[14,31,14,36],[12,26,12,27],[12,37,12,41],[13,0,13,2],[13,3,13,5],[13,6,13,9],[13,10,13,13],[13,20,13,27],[13,31,13,36],[13,37,14,37],[13,38,14,40],[12,0,12,2],[12,3,12,5],[12,6,12,9],[12,10,12,13],[12,21,12,22],[12,24,12,25],[10,0,10,2],[10,3,10,5],[10,6,10,9],[10,10,10,13],[10,15,10,19],[10,20,10,27],[10,29,10,33],[10,34,10,41],[11,0,11,2],[11,3,11,5],[11,6,11,9],[11,10,11,13],[11,15,11,19],[11,20,11,27],[11,29,11,33],[11,34,11,41],[8,39,8,40],[9,0,9,2],[9,3,9,5],[9,6,9,9],[9,10,9,13],[9,15,9,19],[9,20,9,27],[9,29,9,33],[9,34,9,41],[8,0,8,13],[8,16,8,17],[2,0,2,4],[2,15,2,19],[2,29,2,33],[3,0,3,4],[3,15,3,19],[3,29,3,33],[8,19,8,21],[8,25,8,26],[8,30,8,31],[8,33,8,35],[0,0,0,4],[0,15,0,19],[0,29,0,33],[1,0,1,4],[1,15,1,19],[1,29,1,33],[5,5,5,13],[7,2,7,6],[7,8,7,9],[7,12,7,13]]}
["محافظة الغربية",null,null,null,null,null,null,null,null,null,null,null,null,null,null,"محافظة الغربية",null,null,null,null,null,null,null,null,null,null,null,null,null,"محافظة الغربية"]
["مديرية التربية والتعليم ",null,null,null,null,null,null,null,null,null,null,null,null,null,null,"مديرية التربية والتعليم ",null,null,null,null,null,null,null,null,null,null,null,null,null,"مديرية التربية والتعليم "]
["إدارة شرق طنطا التعليمية",null,null,null,null,null,null,null,null,null,null,null,null,null,null,"إدارة شرق طنطا التعليمية",null,null,null,null,null,null,null,null,null,null,null,null,null,"إدارة شرق طنطا التعليمية"]
["شئون الطلبة",null,null,null,null,null,null,null,null,null,null,null,null,null,null,"شئون الطلبة",null,null,null,null,null,null,null,null,null,null,null,null,null,"شئون الطلبة"]
[]
["بالبحث في سجلات المديرية وجد أن الطالب : ",null,null,null,null,{"$f":"IF([2]Home2!$M$12=\"ناجح\",[2]Home2!$B$4,\"\")","v":"محمد السقا"}]
["من بين الناجحين في امتحان / الشهادة الإعدادية "]
["من مدرسة  :",null,{"$f":"IF([2]Home2!$M$12=\"ناجح\",[2]Home2!$B$5,\"\")","v":"الحياة الجميلة"},null,null,null,null,"عــام :",{"$f":"IF([2]Home2!$M$12=\"ناجح\",[2]Home2!$C$6,\"\")","v":2020},null,"برقم جلوس : ",null,{"$f":"IF([2]Home2!$M$12=\"ناجح\",[2]Home2!$K$4,\"\")","v":200000},null,null,"بالكشف في سجل الناجحين في امتحان شهادة : الإعداديـــــــــة",null,null,null,null,null,null,null,null,null,null,null,null,null,"بالكشف في سجل الناجحين في امتحان شهادة : الإعداديـــــــــة"]
["وقد حصل في هذا الامتحان على الدرجات الآتية ,,,",null,null,null,null,null,null,null,null,null,null,null,null,null,null,"الدور :",{"$f":"IF([2]Home2!$M$12=\"ناجح\",[2]Home2!$I$6,\"\")","v":"الثاني"},null,"قسم :","عــــــــــــام",null,null,"في العام الدراسي :",null,null,{"$f":"IF([2]Home2!$M$12=\"ناجح\",[2]Home2!$C$6,\"\")","v":2020},null,"وجد أن :",null,"الدور :",{"$f":"IF([2]Home2!$M$12=\"راسب\",[2]Home2!$I$6,\"\")","v":""},null,"قسم :","عــــــــــــام",null,null,"في العام الدراسي :",null,null,{"$f":"IF([2]Home2!$M$12=\"راسب\",[2]Home2!$C$6,\"\")","v":""},null,"وجد أن :"]
["اســـم المــــــــــــــادة",null,null,"النهــايــة الكبــــرى",null,null,"النهــــــايـــة الصغـــــرى",null,null,null,"درجــــــات الطــــالــــب",null,null,null,null,"رقم جلوس الطالب كما ورد بالسجل : ",null,null,null,null,{"$f":"IF([2]Home2!$M$12=\"ناجح\",[2]Home2!$K$4,\"\")","v":200000},null,null,null,null,null,null,null,null,"رقم جلوس الطالب كما ورد بالسجل : ",null,null,null,null,{"$f":"IF([2]Home2!$M$12=\"راسب\",[2]Home2!$K$4,\"\")","v":""}]
["اللغــة العربيـــــــة",null,null,80,null,null,40,null,null,null,{"$f":"IF([2]Home2!$M$12=\"ناجح\",[2]Home2!$B$12,\"\")","v":80},null,null,null,null,"اسـم الطالب كما هو مدون بالسجل : ",null,null,null,null,{"$f":"IF([2]Home2!$M$12=\"ناجح\",[2]Home2!$B$4,\"\")","v":"محمد السقا"},null,null,null,null,null,null,null,null,"اسـم الطالب كما هو مدون بالسجل : ",null,null,null,null,{"$f":"IF([2]Home2!$M$12=\"راسب\",[2]Home2!$B$4,\"\")","v":""}]
["اللغـــة الإنجليزيـة",null,null,60,null,null,30,null,null,null,{"$f":"IF([2]Home2!$M$12=\"ناجح\",[2]Home2!$C$12,\"\")","v":59},null,null,null,null,"اسـم المدرسة التي تقدم منها للامتحان :",null,null,null,null,{"$f":"IF([2]Home2!$M$12=\"ناجح\",[2]Home2!$B$5,\"\")","v":"الحياة الجميلة"},null,null,null,null,null,null,null,null,"اسـم المدرسة التي تقدم منها للامتحان :",null,null,null,null,{"$f":"IF([2]Home2!$M$12=\"راسب\",[2]Home2!$B$5,\"\")","v":""}]
["الدراســــــــــــــات",null,null,40,null,null,20,null,null,null,{"$f":"IF([2]Home2!$M$12=\"ناجح\",[2]Home2!$D$12,\"\")","v":39},null,null,null,null,"مجموع الدرجات التي حصل عليها الطالب :",null,null,null,null,null,{"$f":"IF([2]Home2!$M$12=\"ناجح\",[2]Home2!$G$12,\"\")","v":296},null,"من",300,null,null,null,null,"وقد استخرج هذا البيان بعد سداد الرسوم المقررة بحوالة رقم : "]
["الرياضيـــــــــــات",null,null,60,null,null,30,null,null,null,{"$f":"IF([2]Home2!$M$12=\"ناجح\",[2]Home2!$E$12,\"\")","v":59},null,null,null,null,null,null,null,null,"فقط :",{"$f":"NoToTxt(V13,\"درجة\",\"نصف\")","v":"فقط مائتان وستة وتسعون درجة"},null,null,null,null,null,null,null,null,null,"جنيه",{"$f":"IF(AE15=\"\",\"\",NoToTxt(AE15,\"جنيه\",\"قرش\"))","v":""},null,null,null,null,null,"بتاريخ",{"$f":"IF([2]Home2!$M$12=\"راسب\",[2]Home2!$F$15,\"\")","v":""}]
["العلـــــــــــــــــوم",null,null,40,null,null,20,null,null,null,{"$f":"IF([2]Home2!$M$12=\"ناجح\",[2]Home2!$F$12,\"\")","v":39},null,null,null,null,"وقد استخرج هذا البيان بعد سداد الرسوم المقررة بحوالة رقم : ",null,null,null,null,null,null,null,null,null,null,null,null,null,null,{"$f":"IF([2]Home2!$M$12=\"راسب\",[2]Home2!$J$15,\"\")","v":""},"طابع دعم تعليمي بمبلغ جنيها واحدا"]
["حــــاســب آلــــــى",null,null,20,null,null,10,null,null,null,{"$f":"IF([2]Home2!$M$12=\"ناجح\",[2]Home2!$J$12,\"\")","v":20},null,null,null,null,null,"جنيه",{"$f":"NoToTxt(Q17,\"جنيه\",\"قرش\")","v":"فقط تسعة وعشرون جنيه وخمسة وسبعون قرش"},null,null,null,null,null,"بتاريخ",{"$f":"IF([2]Home2!$M$12=\"ناجح\",[2]Home2!$F$15,\"\")","v":"1971-07-25"},null,null,null,null,null,"ولذلك لتقديم هذا البيان إلى : ",null,null,null,{"$f":"IF([2]Home2!$M$12=\"راسب\",[2]Home2!$D$17,\"\")","v":""}]
["المجمــــــــوع",null,null,300,null,null,150,null,null,null,{"$f":"IF([2]Home2!$M$12=\"ناجح\",[2]Home2!$G$12,\"\")","v":296},null,null,null,null,null,{"$f":"IF([2]Home2!$M$12=\"ناجح\",[2]Home2!$J$15,\"\")","v":29.75},"طابع دعم تعليمي بمبلغ جنيها واحدا"]
["التربيــــة الدينيـــة",null,null,40,null,null,20,null,null,null,{"$f":"IF([2]Home2!$M$12=\"ناجح\",[2]Home2!$H$12,\"\")","v":40},null,null,null,null,null,"ولذلك لتقديم هذا البيان إلى : ",null,null,null,{"$f":"IF([2]Home2!$M$12=\"ناجح\",[2]Home2!$D$17,\"\")","v":"سفارة دولة المجر الشقيقة بطنطا"},null,null,null,null,null,null,null,null,"ملاحظــــــات :"]
["التربيـــة الفنيـــــة",null,null,20,null,null,10,null,null,null,{"$f":"IF([2]Home2!$M$12=\"ناجح\",[2]Home2!$I$12,\"\")","v":20},null,null,null,null,"ملاحظــــــات :",null,null,null,null,null,null,null,null,null,null,null,null,null,"-","على الجهة المقدم إليها هذا المستخرج التحقق بالأدلة والقرائن التي يتقدم بها نفس الطالب"]
["إنجليزي مستوى رفيع",null,null,50,null,null,25,null,null,null,{"$f":"IF([2]Home2!$M$12=\"ناجح\",[2]Home2!$K$12,\"\")","v":50},null,null,null,null,"-","على الجهة المقدم إليها هذا المستخرج التحقق بالأدلة والقرائن التي يتقدم بها نفس الطالب",null,null,null,null,null,null,null,null,null,null,null,null,null,"الذي تقدم للامتحان المبين بهذا المستخرج ."]
["فرنساوي مستوى رفيع",null,null,40,null,null,16,null,null,null,{"$f":"IF([2]Home2!$M$12=\"ناجح\",[2]Home2!$L$12,\"\")","v":40},null,null,null,null,null,"الذي تقدم للامتحان المبين بهذا المستخرج .",null,null,null,null,null,null,null,null,null,null,null,null,"-","لا يجوز تقديم هذا البيان إلا للجهة التي استخرج من أجلها ."]
[null,null,null,null,null,null,null,null,null,null,null,null,null,null,null,"-","لا يجوز تقديم هذا البيان إلا للجهة التي استخرج من أجلها .",null,null,null,null,null,null,null,null,null,null,null,null,"-","أي كشط أو تغيير في هذا البيان يلغيه ."]
[null,null,null,null,null,null,null,null,null,null,null,null,null,null,null,"-","أي كشط أو تغيير في هذا البيان يلغيه ."]
[]
[null,null,null,null,null,null,null,null,null,null,null,null,null,null,null,"وتفضلوا بقبول وافر الاحترام والقدير",null,null,null,null,null,null,null,null,null,null,null,null,null,"وتفضلوا بقبول وافر الاحترام والقدير"]
[]
[]
["بعد سـداد الرسوم بالحوالة رقم : ",null,null,null,{"$f":"IF([2]Home2!$M$12=\"ناجح\",[2]Home2!$B$15,\"\")","v":34326},null,null,null,null,"بتاريخ :",null,{"$f":"IF([2]Home2!$M$12=\"ناجح\",[2]Home2!$F$15,\"\")","v":"1971-07-25"}]
["بمبلغ :",{"$f":"IF([2]Home2!$M$12=\"ناجح\",[2]Home2!$J$15,\"\")","v":29.75},null,"فقط وقدره :",null,{"$f":"NoToTxt(B29,\"جنيه\",\"قرش\")","v":"فقط تسعة وعشرون جنيه وخمسة وسبعون قرش"},null,null,null,null,"طابع دعم تعليمي ( بمبلغ جنيه واحد )"]
["وقد استخرج هذا البيان لتقديمــه إلـى : ",null,null,null,null,{"$f":"IF([2]Home2!$M$12=\"ناجح\",[2]Home2!$D$17,\"\")","v":"سفارة دولة المجر الشقيقة بطنطا"}]